[Event "Turkish Championship 2022"]
[Site "Kemer-Antalya"]
[Date "2022.12.03"]
[Round "9.5"]
[White "Koksal, Ege"]
[Black "Yaran, Siar"]
[Result "1/2-1/2"]
[ECO "E05"]
[WhiteElo "2321"]
[BlackElo "2291"]
[Annotator "TA"]
[PlyCount "61"]
[EventDate "2022.11.25"]
[EventCountry "TUR"]
[SourceTitle "playchess.com"]
[Source "ChessBase"]
[SourceQuality "1"]
[TimeControl "40/5400+30:1800+30"]

{[%evp 30,61,0,0,0,0,0,0,0,0,0,0,0,0,0,0,0,0,0,0,0,0,0,0,0,0,0,0,0,0,0,0,0,0]} 1. Nf3 {[%emt 0:04:00]} d5 {[%emt 0:07:00]} 2. d4 {[%emt 0:00:30]} Nf6 {[%emt 0:00:30]} 3. c4 {[%emt 0:02:30]} e6 {[%emt 0:00:30]} 4. g3 {[%emt 0:00:00]} Be7 {[%emt 0:00:00]} 5. Bg2 {[%emt 0:00:00]} O-O {[%emt 0:00:00]} 6. O-O {[%emt 0:01:30]} dxc4 {[%emt 0:00:00]} 7. Qc2 {[%emt 0:01:30]} a6 {[%emt 0:00:00]} 8. a4 {[%emt 0:00:30]} Bd7 {[%emt 0:00:30]} 9. Ne5 {[%emt 0:01:30]} Bc6 {[%emt 0:00:00]} 10. Nxc6 {[%emt 0:00:30]} Nxc6 {[%emt 0:00:00]} 11. e3 {[%emt 0:00:30]} Na5 {[%emt 0:00:30]} 12. Nd2 {[%emt 0:00:30]} c5 {[%emt 0:00:30]} 13. dxc5 {[%emt 0:00:30]} Rc8 {[%emt 0:00:30]} 14. b4 {[%emt 0:02:30]} cxb3 {[%emt 0:00:00]} 15. Nxb3 {[%emt 0:00:00]} Nxb3 {[%emt 0:00:00]} 16. Qxb3 {[%emt 0:00:00] The position is equal.} Nd7 {[%emt 0:00:30] E05: Open Catalan: 5 Nf3 Be7.} 17. Ba3 {[%emt 0:00:00]} Nxc5 {[%emt 0:00:30]} 18. Bxc5 {[%emt 0:00:00]} Rxc5 {[%emt 0:00:00]} 19. Qxb7 {[%emt 0:00:00]} a5 {[%emt 0:00:00]} 20. Rfd1 {[%emt 0:04:00]} Qc7 {[%emt 0:00:30]} 21. Qxc7 {[%emt 0:00:30]} Rxc7 {[%emt 0:00:30]} 22. Rac1 {[%emt 0:00:00]} Rfc8 {[%emt 0:00:30]} 23. Rxc7 {[%emt 0:00:00]} Rxc7 $11 {[%emt 0:00:30][%mdl 4096] Endgame KRB-KRB} 24. Bf1 {[%emt 0:00:00]} g6 {[%emt 0:00:00]} 25. Bb5 {[%emt 0:00:00] [#]} Kf8 $146 {[%emt 0:00:00]} ({Predecessor:} 25... Bb4 26. Kg2 h5 27. h4 Rc2 28. Kf1 Kg7 29. Rd7 Rc1+ 30. Ke2 Rc2+ 31. Kf1 Rc1+ 32. Ke2 Rc2+ 33. Kf1 {½-½ (33) Abasov,N (2632)-Dominguez Perez,L (2763) Khanty-Mansiysk 2019}) 26. Rd7 {[%emt 0:00:00]} Rc2 {[%emt 0:01:30]} 27. Kg2 {[%emt 0:00:00]} Bb4 {[%emt 0:00:30]} 28. Rd1 {[%emt 0:00:30]} Bd2 {[%emt 0:00:30]} 29. Kf3 {[%emt 0:02:30]} Rb2 {[%emt 0:00:30]} 30. h4 {[%emt 0:00:30]} h5 {[%emt 0:00:00]} 31. Ke4 {[%emt 0:01:30] Not much happened in this game.   Weighted Error Value: White=0.00 (flawless) /Black=0.00 (flawless)} 1/2-1/2